[Event "Titled Tuesday Blitz May 30 Early 2023"]
[White "Begunov, Konstantin"]
[Black "Kiremitciyan, Ari"]
[WhiteFideId "4118510"]
[BlackFideId "6373445"]
[WhiteElo "2050"]
[BlackElo "2181"]
[Result "1-0"]
[Round "07"]
[TimeControl "180+2"]
[Date "2023.05.30"]
[WhiteClock "0:00:40"]
[BlackClock "0:00:00"]

1. d4 {[%clk 0:02:57]}  Nf6 {[%clk 0:02:59]} 2. c4 {[%clk 0:02:57]}  e6 {[%clk 0:03:00]} 3. Nf3 {[%clk 0:02:56]}  d5 {[%clk 0:02:59]} 4. Nc3 {[%clk 0:02:55]}  Be7 {[%clk 0:02:59]} 5. cxd5 {[%clk 0:02:55]}  exd5 {[%clk 0:02:59]} 6. Bg5 {[%clk 0:02:56]}  c6 {[%clk 0:02:59]} 7. Qc2 {[%clk 0:02:56]}  g6 {[%clk 0:02:59]} 8. e3 {[%clk 0:02:55]}  Bf5 {[%clk 0:02:59]} 9. Bd3 {[%clk 0:02:56]}  Bxd3 {[%clk 0:03:00]} 10. Qxd3 {[%clk 0:02:57]}  Nbd7 {[%clk 0:02:59]} 11. O-O {[%clk 0:02:57]}  O-O {[%clk 0:02:59]} 12. Rab1 {[%clk 0:02:57]}  a5 {[%clk 0:02:59]} 13. a3 {[%clk 0:02:57]}  Ne4 {[%clk 0:02:56]} 14. Bh6 {[%clk 0:02:45]}  Nxc3 {[%clk 0:02:04]} 15. bxc3 {[%clk 0:02:07]}  Re8 {[%clk 0:02:03]} 16. Rxb7 {[%clk 0:01:36]}  Bxa3 {[%clk 0:02:01]} 17. c4 {[%clk 0:01:36]}  Bb4 {[%clk 0:01:57]} 18. cxd5 {[%clk 0:01:36]}  cxd5 {[%clk 0:01:58]} 19. Qb5 {[%clk 0:01:36]}  Nf6 {[%clk 0:01:34]} 20. Bg5 {[%clk 0:01:28]}  Be7 {[%clk 0:01:04]} 21. Ne5 {[%clk 0:01:28]}  Ne4 {[%clk 0:00:06]} 22. Nc6 {[%clk 0:01:14]}  Bxg5 {[%clk 0:00:04]} 23. Nxd8 {[%clk 0:01:14]}  Rexd8 {[%clk 0:00:05]} 24. Rd7 {[%clk 0:00:47]}  Nc3 {[%clk 0:00:04]} 25. Qc6 {[%clk 0:00:46]}  Rdc8 {[%clk 0:00:02]} 26. Rc7 {[%clk 0:00:40]}  Rxc7 {[%clk 0:00:01]} 27. Qxa8+ {[%clk 0:00:40]}  Kg7 {[%clk 0:00:00]} 28. Qxa5 {[%clk 0:00:40]} 1-0


[Site "https://www.chess.com"]

[Event "Titled Tuesday Blitz May 30 Early 2023"]
[White "Budrewicz, Krzysztof"]
[Black "Erzhanov, Arman"]
[WhiteFideId "1127950"]
[BlackFideId "4138821"]
[WhiteElo "2230"]
[BlackElo "2138"]
[Result "1-0"]
[Round "07"]
[TimeControl "180+2"]
[Date "2023.05.30"]
[WhiteClock "0:00:23"]
[BlackClock "0:00:08"]

1. d4 {[%clk 0:03:00]}  d6 {[%clk 0:03:00]} 2. e4 {[%clk 0:02:59]}  Nf6 {[%clk 0:03:00]} 3. Bd3 {[%clk 0:02:58]}  e5 {[%clk 0:02:59]} 4. c3 {[%clk 0:02:58]}  d5 {[%clk 0:02:59]} 5. exd5 {[%clk 0:02:57]}  e4 {[%clk 0:02:54]} 6. Be2 {[%clk 0:02:52]}  Qxd5 {[%clk 0:02:53]} 7. c4 {[%clk 0:02:51]}  Qa5+ {[%clk 0:02:38]} 8. Nc3 {[%clk 0:02:49]}  Nc6 {[%clk 0:02:35]} 9. Be3 {[%clk 0:02:47]}  Bf5 {[%clk 0:02:32]} 10. a3 {[%clk 0:02:41]}  Bg6 {[%clk 0:02:04]} 11. b4 {[%clk 0:02:32]}  Qf5 {[%clk 0:02:04]} 12. h3 {[%clk 0:02:28]}  h5 {[%clk 0:02:03]} 13. g4 {[%clk 0:02:01]}  Qd7 {[%clk 0:01:28]} 14. g5 {[%clk 0:02:00]}  Ng8 {[%clk 0:01:24]} 15. Qd2 {[%clk 0:01:59]}  a5 {[%clk 0:01:21]} 16. b5 {[%clk 0:01:58]}  Nd8 {[%clk 0:01:20]} 17. h4 {[%clk 0:01:53]}  Bf5 {[%clk 0:01:19]} 18. c5 {[%clk 0:01:42]}  Ne6 {[%clk 0:01:12]} 19. O-O-O {[%clk 0:01:41]}  b6 {[%clk 0:01:11]} 20. Na4 {[%clk 0:01:29]}  Rd8 {[%clk 0:00:28]} 21. d5 {[%clk 0:01:15]}  Nxc5 {[%clk 0:00:27]} 22. Nxc5 {[%clk 0:01:14]}  Bxc5 {[%clk 0:00:28]} 23. Bxc5 {[%clk 0:01:14]}  bxc5 {[%clk 0:00:29]} 24. Qc3 {[%clk 0:01:13]}  Ne7 {[%clk 0:00:23]} 25. Qxg7 {[%clk 0:01:09]}  Rg8 {[%clk 0:00:22]} 26. Qc3 {[%clk 0:01:08]}  Nxd5 {[%clk 0:00:21]} 27. Qe5+ {[%clk 0:01:06]}  Qe6 {[%clk 0:00:21]} 28. Qxe6+ {[%clk 0:01:05]}  fxe6 {[%clk 0:00:22]} 29. Nh3 {[%clk 0:01:03]}  Bg4 {[%clk 0:00:17]} 30. Ng1 {[%clk 0:00:50]}  Nf4 {[%clk 0:00:12]} 31. Rxd8+ {[%clk 0:00:48]}  Kxd8 {[%clk 0:00:12]} 32. Bxg4 {[%clk 0:00:47]}  hxg4 {[%clk 0:00:13]} 33. Kd2 {[%clk 0:00:48]}  Nd3 {[%clk 0:00:08]} 34. Rh2 {[%clk 0:00:47]}  Ne5 {[%clk 0:00:03]} 35. Ke3 {[%clk 0:00:45]}  Nc4+ {[%clk 0:00:03]} 36. Kxe4 {[%clk 0:00:45]}  Nxa3 {[%clk 0:00:04]} 37. Ne2 {[%clk 0:00:44]}  Nxb5 {[%clk 0:00:05]} 38. Nf4 {[%clk 0:00:42]}  Ke7 {[%clk 0:00:05]} 39. g6 {[%clk 0:00:41]}  Nd6+ {[%clk 0:00:05]} 40. Ke5 {[%clk 0:00:39]}  Nc4+ {[%clk 0:00:05]} 41. Ke4 {[%clk 0:00:39]}  Nd6+ {[%clk 0:00:06]} 42. Kd3 {[%clk 0:00:40]}  c4+ {[%clk 0:00:05]} 43. Kc3 {[%clk 0:00:39]}  e5 {[%clk 0:00:06]} 44. Nd5+ {[%clk 0:00:38]}  Ke6 {[%clk 0:00:06]} 45. Nxc7+ {[%clk 0:00:39]}  Kd7 {[%clk 0:00:07]} 46. Nd5 {[%clk 0:00:39]}  Rxg6 {[%clk 0:00:07]} 47. h5 {[%clk 0:00:39]}  Rh6 {[%clk 0:00:07]} 48. Ne3 {[%clk 0:00:39]}  Ne4+ {[%clk 0:00:06]} 49. Kxc4 {[%clk 0:00:37]}  Nf6 {[%clk 0:00:07]} 50. Rh1 {[%clk 0:00:31]}  Ke6 {[%clk 0:00:07]} 51. Rb1 {[%clk 0:00:28]}  Rh8 {[%clk 0:00:01]} 52. Rb6+ {[%clk 0:00:28]}  Kf7 {[%clk 0:00:01]} 53. Rb7+ {[%clk 0:00:29]}  Ke6 {[%clk 0:00:01]} 54. Ra7 {[%clk 0:00:29]}  Kd6 {[%clk 0:00:01]} 55. Ra6+ {[%clk 0:00:30]}  Ke7 {[%clk 0:00:02]} 56. Rxa5 {[%clk 0:00:30]}  Ke6 {[%clk 0:00:03]} 57. Ra6+ {[%clk 0:00:31]}  Kf7 {[%clk 0:00:03]} 58. Ra7+ {[%clk 0:00:29]}  Ke6 {[%clk 0:00:03]} 59. Rg7 {[%clk 0:00:29]}  Rc8+ {[%clk 0:00:04]} 60. Kd3 {[%clk 0:00:29]}  Rh8 {[%clk 0:00:04]} 61. Rg6 {[%clk 0:00:28]}  Kf7 {[%clk 0:00:04]} 62. Nf5 {[%clk 0:00:25]}  Nxh5 {[%clk 0:00:04]} 63. Ra6 {[%clk 0:00:24]}  Nf4+ {[%clk 0:00:04]} 64. Ke4 {[%clk 0:00:24]}  Re8 {[%clk 0:00:05]} 65. Nd6+ {[%clk 0:00:24]}  Ke7 {[%clk 0:00:05]} 66. Nxe8 {[%clk 0:00:25]}  Kxe8 {[%clk 0:00:06]} 67. Kxe5 {[%clk 0:00:25]}  Nd3+ {[%clk 0:00:07]} 68. Ke6 {[%clk 0:00:24]}  Nxf2 {[%clk 0:00:08]} 69. Ra8# {[%clk 0:00:23]} 1-0


[Site "https://www.chess.com"]

[Event "Titled Tuesday Blitz May 30 Early 2023"]
[White "Ryan, Joseph"]
[Black "ATM622"]
[WhiteFideId "2500426"]
[WhiteElo "2446"]
[BlackElo "2546"]
[Result "0-1"]
[Round "07"]
[TimeControl "180+2"]
[Date "2023.05.30"]
[WhiteClock "0:00:00"]
[BlackClock "0:00:01"]

1. e4 {[%clk 0:02:52]}  c6 {[%clk 0:02:58]} 2. Nc3 {[%clk 0:02:48]}  d5 {[%clk 0:02:59]} 3. Nf3 {[%clk 0:02:48]}  dxe4 {[%clk 0:02:59]} 4. Nxe4 {[%clk 0:02:48]}  Nf6 {[%clk 0:02:59]} 5. Qe2 {[%clk 0:02:48]}  Nxe4 {[%clk 0:02:59]} 6. Qxe4 {[%clk 0:02:49]}  Qd5 {[%clk 0:02:59]} 7. Bd3 {[%clk 0:02:35]}  Qxe4+ {[%clk 0:02:57]} 8. Bxe4 {[%clk 0:02:36]}  Nd7 {[%clk 0:02:58]} 9. d4 {[%clk 0:02:34]}  Nf6 {[%clk 0:02:56]} 10. Bd3 {[%clk 0:02:35]}  Bg4 {[%clk 0:02:53]} 11. Ne5 {[%clk 0:02:34]}  Be6 {[%clk 0:02:53]} 12. c3 {[%clk 0:02:33]}  g6 {[%clk 0:02:52]} 13. Be3 {[%clk 0:02:24]}  Bg7 {[%clk 0:02:52]} 14. f4 {[%clk 0:02:20]}  O-O {[%clk 0:02:51]} 15. O-O {[%clk 0:02:19]}  Rfd8 {[%clk 0:02:46]} 16. Rae1 {[%clk 0:02:09]}  Nd5 {[%clk 0:02:43]} 17. Bc1 {[%clk 0:02:09]}  Rac8 {[%clk 0:02:32]} 18. a3 {[%clk 0:02:08]}  c5 {[%clk 0:02:29]} 19. c4 {[%clk 0:02:05]}  Nf6 {[%clk 0:02:10]} 20. d5 {[%clk 0:02:04]}  Bf5 {[%clk 0:02:10]} 21. Bxf5 {[%clk 0:01:58]}  gxf5 {[%clk 0:02:11]} 22. Re2 {[%clk 0:01:53]}  b5 {[%clk 0:02:10]} 23. b3 {[%clk 0:01:53]}  bxc4 {[%clk 0:02:06]} 24. bxc4 {[%clk 0:01:53]}  Ne4 {[%clk 0:02:06]} 25. g4 {[%clk 0:01:47]}  e6 {[%clk 0:02:02]} 26. gxf5 {[%clk 0:01:33]}  exf5 {[%clk 0:02:02]} 27. Be3 {[%clk 0:01:18]}  Nd6 {[%clk 0:01:58]} 28. Bf2 {[%clk 0:01:10]}  Bxe5 {[%clk 0:01:53]} 29. fxe5 {[%clk 0:01:09]}  Nxc4 {[%clk 0:01:53]} 30. d6 {[%clk 0:01:02]}  f6 {[%clk 0:01:39]} 31. Bh4 {[%clk 0:01:01]}  fxe5 {[%clk 0:01:23]} 32. Bxd8 {[%clk 0:01:00]}  Rxd8 {[%clk 0:01:24]} 33. Rxf5 {[%clk 0:01:00]}  Rxd6 {[%clk 0:01:23]} 34. Rg2+ {[%clk 0:00:59]}  Rg6 {[%clk 0:01:23]} 35. Rxg6+ {[%clk 0:00:56]}  hxg6 {[%clk 0:01:24]} 36. Rf6 {[%clk 0:00:56]}  Nxa3 {[%clk 0:01:14]} 37. Rxg6+ {[%clk 0:00:56]}  Kf7 {[%clk 0:01:15]} 38. Ra6 {[%clk 0:00:56]}  Nb5 {[%clk 0:01:11]} 39. Ra5 {[%clk 0:00:56]}  a6 {[%clk 0:01:08]} 40. Rxa6 {[%clk 0:00:55]}  Nd4 {[%clk 0:01:04]} 41. Kf2 {[%clk 0:00:51]}  c4 {[%clk 0:00:51]} 42. Ra7+ {[%clk 0:00:50]}  Ke6 {[%clk 0:00:50]} 43. Rc7 {[%clk 0:00:50]}  Kd5 {[%clk 0:00:48]} 44. h4 {[%clk 0:00:50]}  c3 {[%clk 0:00:39]} 45. h5 {[%clk 0:00:45]}  c2 {[%clk 0:00:36]} 46. Rxc2 {[%clk 0:00:31]}  Nxc2 {[%clk 0:00:30]} 47. h6 {[%clk 0:00:31]}  Kd4 {[%clk 0:00:09]} 48. h7 {[%clk 0:00:30]}  e4 {[%clk 0:00:06]} 49. h8=Q+ {[%clk 0:00:30]}  Kd3 {[%clk 0:00:06]} 50. Qd8+ {[%clk 0:00:23]}  Nd4 {[%clk 0:00:06]} 51. Qd7 {[%clk 0:00:19]}  e3+ {[%clk 0:00:06]} 52. Kg3 {[%clk 0:00:15]}  Ke4 {[%clk 0:00:05]} 53. Qe7+ {[%clk 0:00:14]}  Kd3 {[%clk 0:00:06]} 54. Qh7+ {[%clk 0:00:13]}  Kd2 {[%clk 0:00:05]} 55. Qd7 {[%clk 0:00:09]}  Kd3 {[%clk 0:00:05]} 56. Qh7+ {[%clk 0:00:07]}  Kd2 {[%clk 0:00:03]} 57. Qd7 {[%clk 0:00:04]}  Kd3 {[%clk 0:00:03]} 58. Kg2 {[%clk 0:00:02]}  e2 {[%clk 0:00:01]} 59. Kf2 {[%clk 0:00:00]}  Kc3 {[%clk 0:00:01]} 0-1


[Site "https://www.chess.com"]

[Event "Titled Tuesday Blitz May 30 Early 2023"]
[White "Tanmay Jain"]
[Black "Shtompel, Yuriy"]
[WhiteFideId "45015481"]
[BlackFideId "14168278"]
[WhiteElo "2032"]
[BlackElo "1844"]
[Result "1-0"]
[Round "07"]
[TimeControl "180+2"]
[Date "2023.05.30"]
[WhiteClock "0:02:05"]
[BlackClock "0:01:21"]

1. Nf3 {[%clk 0:03:00]}  Nf6 {[%clk 0:02:56]} 2. Nc3 {[%clk 0:02:58]}  g6 {[%clk 0:02:55]} 3. e4 {[%clk 0:02:58]}  d6 {[%clk 0:02:55]} 4. g3 {[%clk 0:02:58]}  Bg7 {[%clk 0:02:55]} 5. Bg2 {[%clk 0:02:58]}  O-O {[%clk 0:02:56]} 6. O-O {[%clk 0:02:58]}  Nbd7 {[%clk 0:02:53]} 7. d3 {[%clk 0:02:58]}  c5 {[%clk 0:02:45]} 8. h3 {[%clk 0:02:58]}  Rb8 {[%clk 0:02:45]} 9. Be3 {[%clk 0:02:54]}  b5 {[%clk 0:02:44]} 10. Qd2 {[%clk 0:02:54]}  b4 {[%clk 0:02:43]} 11. Ne2 {[%clk 0:02:54]}  a5 {[%clk 0:02:43]} 12. Bh6 {[%clk 0:02:54]}  e6 {[%clk 0:02:36]} 13. Bxg7 {[%clk 0:02:45]}  Kxg7 {[%clk 0:02:37]} 14. Nh4 {[%clk 0:02:46]}  d5 {[%clk 0:02:22]} 15. exd5 {[%clk 0:02:10]}  exd5 {[%clk 0:02:03]} 16. Qg5 {[%clk 0:02:08]}  Ne5 {[%clk 0:01:24]} 17. Qxe5 {[%clk 0:02:07]}  Re8 {[%clk 0:01:21]} 18. Qxb8 {[%clk 0:02:05]} 1-0


[Site "https://www.chess.com"]

[Event "Titled Tuesday Blitz May 30 Early 2023"]
[White "Liu, Xiangyi"]
[Black "Bashirli, Saadat"]
[WhiteFideId "8605718"]
[BlackFideId "13429990"]
[WhiteElo "2323"]
[BlackElo "1408"]
[Result "1-0"]
[Round "07"]
[TimeControl "180+2"]
[Date "2023.05.30"]
[WhiteClock "0:00:39"]
[BlackClock "0:00:51"]

1. e4 {[%clk 0:02:56]}  c5 {[%clk 0:02:59]} 2. Nc3 {[%clk 0:02:55]}  g6 {[%clk 0:02:59]} 3. d4 {[%clk 0:02:55]}  cxd4 {[%clk 0:02:58]} 4. Qxd4 {[%clk 0:02:56]}  Nf6 {[%clk 0:02:59]} 5. Bc4 {[%clk 0:02:35]}  Nc6 {[%clk 0:02:58]} 6. Qe3 {[%clk 0:02:36]}  d6 {[%clk 0:02:57]} 7. Bd2 {[%clk 0:02:33]}  Bg7 {[%clk 0:02:56]} 8. O-O-O {[%clk 0:02:32]}  a6 {[%clk 0:02:55]} 9. Bb3 {[%clk 0:02:22]}  Na5 {[%clk 0:02:47]} 10. h4 {[%clk 0:01:57]}  Nxb3+ {[%clk 0:02:40]} 11. axb3 {[%clk 0:01:52]}  h5 {[%clk 0:02:39]} 12. f3 {[%clk 0:01:46]}  b5 {[%clk 0:02:37]} 13. Nge2 {[%clk 0:01:29]}  Bd7 {[%clk 0:02:23]} 14. Kb1 {[%clk 0:01:28]}  a5 {[%clk 0:02:21]} 15. e5 {[%clk 0:01:26]}  dxe5 {[%clk 0:02:20]} 16. Qxe5 {[%clk 0:01:27]}  Rb8 {[%clk 0:02:11]} 17. Bf4 {[%clk 0:01:22]}  O-O {[%clk 0:02:09]} 18. Qxb8 {[%clk 0:01:22]}  Qxb8 {[%clk 0:02:09]} 19. Bxb8 {[%clk 0:01:23]}  Rxb8 {[%clk 0:02:08]} 20. Nf4 {[%clk 0:01:20]}  Bf5 {[%clk 0:02:04]} 21. Nfd5 {[%clk 0:01:19]}  Kf8 {[%clk 0:01:58]} 22. Ne3 {[%clk 0:01:14]}  b4 {[%clk 0:01:55]} 23. Nxf5 {[%clk 0:01:13]}  bxc3 {[%clk 0:01:52]} 24. Nxg7 {[%clk 0:01:12]}  cxb2 {[%clk 0:01:49]} 25. Rhe1 {[%clk 0:01:04]}  Rb7 {[%clk 0:01:34]} 26. Ne6+ {[%clk 0:00:56]}  fxe6 {[%clk 0:01:33]} 27. Rxe6 {[%clk 0:00:57]}  Kf7 {[%clk 0:01:33]} 28. Ra6 {[%clk 0:00:54]}  Rb5 {[%clk 0:01:31]} 29. Kxb2 {[%clk 0:00:53]}  Rb4 {[%clk 0:01:29]} 30. g3 {[%clk 0:00:52]}  Rb5 {[%clk 0:01:24]} 31. Rd3 {[%clk 0:00:36]}  g5 {[%clk 0:01:21]} 32. hxg5 {[%clk 0:00:30]}  Rxg5 {[%clk 0:01:22]} 33. f4 {[%clk 0:00:30]}  Rf5 {[%clk 0:01:20]} 34. Re3 {[%clk 0:00:30]}  Ng4 {[%clk 0:01:10]} 35. Re2 {[%clk 0:00:26]}  Rc5 {[%clk 0:01:07]} 36. Ra7 {[%clk 0:00:25]}  Nf6 {[%clk 0:00:53]} 37. Raxe7+ {[%clk 0:00:25]}  Kg6 {[%clk 0:00:53]} 38. R7e5 {[%clk 0:00:26]}  Rc7 {[%clk 0:00:49]} 39. Rxa5 {[%clk 0:00:26]}  Ng4 {[%clk 0:00:49]} 40. Rg5+ {[%clk 0:00:26]}  Kf6 {[%clk 0:00:48]} 41. Rxh5 {[%clk 0:00:26]}  Ra7 {[%clk 0:00:46]} 42. Rg5 {[%clk 0:00:27]}  Nh6 {[%clk 0:00:45]} 43. g4 {[%clk 0:00:27]}  Nf7 {[%clk 0:00:45]} 44. Rf5+ {[%clk 0:00:27]}  Kg7 {[%clk 0:00:46]} 45. Re6 {[%clk 0:00:27]}  Nd8 {[%clk 0:00:46]} 46. Ref6 {[%clk 0:00:25]}  Rd7 {[%clk 0:00:43]} 47. g5 {[%clk 0:00:25]}  Nb7 {[%clk 0:00:43]} 48. g6 {[%clk 0:00:25]}  Nd8 {[%clk 0:00:43]} 49. Rf7+ {[%clk 0:00:25]}  Nxf7 {[%clk 0:00:42]} 50. Rxf7+ {[%clk 0:00:26]}  Rxf7 {[%clk 0:00:41]} 51. gxf7 {[%clk 0:00:27]}  Kxf7 {[%clk 0:00:42]} 52. b4 {[%clk 0:00:28]}  Kf6 {[%clk 0:00:43]} 53. b5 {[%clk 0:00:28]}  Kf5 {[%clk 0:00:44]} 54. b6 {[%clk 0:00:29]}  Kxf4 {[%clk 0:00:45]} 55. b7 {[%clk 0:00:30]}  Ke5 {[%clk 0:00:45]} 56. b8=Q+ {[%clk 0:00:31]}  Ke4 {[%clk 0:00:45]} 57. Qb5 {[%clk 0:00:31]}  Kf3 {[%clk 0:00:46]} 58. c4 {[%clk 0:00:32]}  Kg2 {[%clk 0:00:47]} 59. c5 {[%clk 0:00:33]}  Kh1 {[%clk 0:00:48]} 60. c6 {[%clk 0:00:34]}  Kh2 {[%clk 0:00:48]} 61. c7 {[%clk 0:00:35]}  Kh3 {[%clk 0:00:49]} 62. c8=Q+ {[%clk 0:00:36]}  Kg3 {[%clk 0:00:49]} 63. Qcc4 {[%clk 0:00:35]}  Kf2 {[%clk 0:00:49]} 64. Ka3 {[%clk 0:00:36]}  Kg3 {[%clk 0:00:50]} 65. Qbb3+ {[%clk 0:00:37]}  Kf2 {[%clk 0:00:50]} 66. Qcc2+ {[%clk 0:00:38]}  Ke1 {[%clk 0:00:51]} 67. Qbb1# {[%clk 0:00:39]} 1-0


[Site "https://www.chess.com"]

[Event "Titled Tuesday Blitz May 30 Early 2023"]
[White "Jovic, Stanoje"]
[Black "Camilla_Lee"]
[WhiteFideId "905020"]
[WhiteElo "2236"]
[BlackElo "2655"]
[Result "1-0"]
[Round "07"]
[TimeControl "180+2"]
[Date "2023.05.30"]
[WhiteClock "0:01:13"]
[BlackClock "0:00:08"]

1. c4 {[%clk 0:03:00]}  c6 {[%clk 0:02:59]} 2. e4 {[%clk 0:03:00]}  d5 {[%clk 0:03:00]} 3. exd5 {[%clk 0:03:01]}  cxd5 {[%clk 0:03:00]} 4. cxd5 {[%clk 0:03:01]}  Nf6 {[%clk 0:03:00]} 5. Qa4+ {[%clk 0:03:01]}  Nbd7 {[%clk 0:02:56]} 6. Bc4 {[%clk 0:03:01]}  g6 {[%clk 0:02:56]} 7. d3 {[%clk 0:03:01]}  Bg7 {[%clk 0:02:56]} 8. Nc3 {[%clk 0:03:02]}  O-O {[%clk 0:02:56]} 9. Nf3 {[%clk 0:03:02]}  Nb6 {[%clk 0:02:56]} 10. Qb3 {[%clk 0:03:01]}  Bg4 {[%clk 0:02:49]} 11. Ne5 {[%clk 0:03:01]}  Bf5 {[%clk 0:02:47]} 12. O-O {[%clk 0:03:00]}  Nfd7 {[%clk 0:02:33]} 13. Nxd7 {[%clk 0:02:55]}  Qxd7 {[%clk 0:02:34]} 14. Be3 {[%clk 0:02:51]}  Qd6 {[%clk 0:02:17]} 15. Nb5 {[%clk 0:02:48]}  Qd7 {[%clk 0:01:47]} 16. Nxa7 {[%clk 0:02:34]}  Rxa7 {[%clk 0:01:33]} 17. Bxb6 {[%clk 0:02:33]}  Raa8 {[%clk 0:01:34]} 18. Rfe1 {[%clk 0:02:29]}  Bf6 {[%clk 0:01:18]} 19. a4 {[%clk 0:02:27]}  Kg7 {[%clk 0:01:17]} 20. a5 {[%clk 0:02:26]}  Qd6 {[%clk 0:01:16]} 21. Qa3 {[%clk 0:02:13]}  Qxa3 {[%clk 0:01:11]} 22. bxa3 {[%clk 0:02:08]}  Bxa1 {[%clk 0:01:10]} 23. Rxa1 {[%clk 0:02:07]}  Bd7 {[%clk 0:01:02]} 24. Re1 {[%clk 0:02:00]}  Rfe8 {[%clk 0:01:02]} 25. f3 {[%clk 0:01:56]}  e5 {[%clk 0:00:51]} 26. Kf2 {[%clk 0:01:47]}  f5 {[%clk 0:00:50]} 27. Rb1 {[%clk 0:01:44]}  Kf6 {[%clk 0:00:50]} 28. Bc7 {[%clk 0:01:42]}  Ra7 {[%clk 0:00:44]} 29. Rb6+ {[%clk 0:01:39]}  Kg5 {[%clk 0:00:40]} 30. Rd6 {[%clk 0:01:26]}  Ba4 {[%clk 0:00:36]} 31. g3 {[%clk 0:01:24]}  e4 {[%clk 0:00:33]} 32. dxe4 {[%clk 0:01:20]}  fxe4 {[%clk 0:00:33]} 33. f4+ {[%clk 0:01:18]}  Kf5 {[%clk 0:00:30]} 34. Ke3 {[%clk 0:01:16]}  Bc2 {[%clk 0:00:25]} 35. Be2 {[%clk 0:01:13]}  h5 {[%clk 0:00:08]} 36. h3 {[%clk 0:01:13]} 1-0


[Site "https://www.chess.com"]

[Event "Titled Tuesday Blitz May 30 Early 2023"]
[White "KorolDimitriy75"]
[Black "Pinheiro, Iung Alicio de O."]
[BlackFideId "2104350"]
[WhiteElo "2410"]
[BlackElo "2283"]
[Result "0-1"]
[Round "07"]
[TimeControl "180+2"]
[Date "2023.05.30"]
[WhiteClock "0:00:05"]
[BlackClock "0:00:13"]

1. d4 {[%clk 0:02:49]}  Nf6 {[%clk 0:02:57]} 2. c4 {[%clk 0:02:49]}  e6 {[%clk 0:02:56]} 3. Nc3 {[%clk 0:02:49]}  Bb4 {[%clk 0:02:55]} 4. Qc2 {[%clk 0:02:49]}  Nc6 {[%clk 0:02:50]} 5. Nf3 {[%clk 0:02:48]}  d6 {[%clk 0:02:49]} 6. e4 {[%clk 0:02:48]}  Bxc3+ {[%clk 0:02:28]} 7. bxc3 {[%clk 0:02:48]}  e5 {[%clk 0:02:27]} 8. Ba3 {[%clk 0:02:29]}  Qe7 {[%clk 0:02:13]} 9. d5 {[%clk 0:01:52]}  Nb8 {[%clk 0:02:08]} 10. Bd3 {[%clk 0:01:45]}  O-O {[%clk 0:01:44]} 11. O-O {[%clk 0:01:44]}  Nbd7 {[%clk 0:01:24]} 12. Nd2 {[%clk 0:01:34]}  Nh5 {[%clk 0:01:15]} 13. Rae1 {[%clk 0:01:19]}  g6 {[%clk 0:01:13]} 14. g3 {[%clk 0:01:14]}  Ndf6 {[%clk 0:00:54]} 15. f4 {[%clk 0:00:42]}  Bh3 {[%clk 0:00:48]} 16. Rf3 {[%clk 0:00:41]}  Bg4 {[%clk 0:00:32]} 17. Rf2 {[%clk 0:00:41]}  Nd7 {[%clk 0:00:24]} 18. Bf1 {[%clk 0:00:35]}  exf4 {[%clk 0:00:18]} 19. gxf4 {[%clk 0:00:34]}  Qh4 {[%clk 0:00:19]} 20. Qd3 {[%clk 0:00:23]}  Nc5 {[%clk 0:00:13]} 21. Bxc5 {[%clk 0:00:17]}  dxc5 {[%clk 0:00:14]} 22. e5 {[%clk 0:00:16]}  Rae8 {[%clk 0:00:13]} 23. Ne4 {[%clk 0:00:15]}  Bf5 {[%clk 0:00:12]} 24. Qf3 {[%clk 0:00:14]}  Bxe4 {[%clk 0:00:11]} 25. Rxe4 {[%clk 0:00:15]}  f5 {[%clk 0:00:10]} 26. Ree2 {[%clk 0:00:13]}  b6 {[%clk 0:00:10]} 27. Qe3 {[%clk 0:00:13]}  Qd8 {[%clk 0:00:10]} 28. Bg2 {[%clk 0:00:13]}  Kh8 {[%clk 0:00:10]} 29. Qf3 {[%clk 0:00:12]}  Ng7 {[%clk 0:00:11]} 30. Kh1 {[%clk 0:00:12]}  Qh4 {[%clk 0:00:10]} 31. Qg3 {[%clk 0:00:12]}  Qe7 {[%clk 0:00:10]} 32. Qf3 {[%clk 0:00:12]}  Nh5 {[%clk 0:00:10]} 33. Qe3 {[%clk 0:00:12]}  Qh4 {[%clk 0:00:10]} 34. Qf3 {[%clk 0:00:11]}  Rg8 {[%clk 0:00:09]} 35. Rf1 {[%clk 0:00:11]}  g5 {[%clk 0:00:10]} 36. fxg5 {[%clk 0:00:10]}  Rxg5 {[%clk 0:00:10]} 37. Ref2 {[%clk 0:00:10]}  Reg8 {[%clk 0:00:11]} 38. Bh3 {[%clk 0:00:10]}  Ng3+ {[%clk 0:00:10]} 39. hxg3 {[%clk 0:00:10]}  Rxg3 {[%clk 0:00:11]} 40. Qxf5 {[%clk 0:00:07]}  Rxh3+ {[%clk 0:00:11]} 41. Qxh3 {[%clk 0:00:05]}  Qxh3+ {[%clk 0:00:12]} 42. Rh2 {[%clk 0:00:05]}  Qxf1# {[%clk 0:00:13]} 0-1


[Site "https://www.chess.com"]

[Event "Titled Tuesday Blitz May 30 Early 2023"]
[White "Do Nascimento,Christian Almeida"]
[Black "Toktomushev, Teimur"]
[WhiteFideId "2143801"]
[BlackFideId "14176726"]
[WhiteElo "2118"]
[BlackElo "2116"]
[Result "1-0"]
[Round "07"]
[TimeControl "180+2"]
[Date "2023.05.30"]
[WhiteClock "0:01:19"]
[BlackClock "0:00:00"]

1. d4 {[%clk 0:03:00]}  d5 {[%clk 0:02:59]} 2. Nf3 {[%clk 0:02:58]}  Nf6 {[%clk 0:02:56]} 3. Bf4 {[%clk 0:02:58]}  c5 {[%clk 0:02:55]} 4. e3 {[%clk 0:02:59]}  Nc6 {[%clk 0:02:56]} 5. c3 {[%clk 0:02:59]}  Qb6 {[%clk 0:02:57]} 6. Qc1 {[%clk 0:02:54]}  Bf5 {[%clk 0:02:55]} 7. Be2 {[%clk 0:02:53]}  e6 {[%clk 0:02:38]} 8. h3 {[%clk 0:02:53]}  h6 {[%clk 0:02:38]} 9. O-O {[%clk 0:02:53]}  Be7 {[%clk 0:02:37]} 10. Nbd2 {[%clk 0:02:52]}  O-O {[%clk 0:02:36]} 11. Ne5 {[%clk 0:02:53]}  Rfc8 {[%clk 0:02:30]} 12. Ndf3 {[%clk 0:02:48]}  Qa5 {[%clk 0:01:48]} 13. Nxc6 {[%clk 0:02:12]}  Rxc6 {[%clk 0:01:47]} 14. Ne5 {[%clk 0:02:12]}  Rcc8 {[%clk 0:01:46]} 15. a3 {[%clk 0:02:04]}  Qd8 {[%clk 0:01:06]} 16. Bf3 {[%clk 0:02:01]}  b5 {[%clk 0:00:59]} 17. Re1 {[%clk 0:01:57]}  b4 {[%clk 0:00:53]} 18. axb4 {[%clk 0:01:57]}  cxb4 {[%clk 0:00:50]} 19. c4 {[%clk 0:01:54]}  a5 {[%clk 0:00:25]} 20. c5 {[%clk 0:01:54]}  a4 {[%clk 0:00:22]} 21. Qd2 {[%clk 0:01:52]}  Qa5 {[%clk 0:00:21]} 22. g4 {[%clk 0:01:48]}  Be4 {[%clk 0:00:17]} 23. Be2 {[%clk 0:01:41]}  Bh7 {[%clk 0:00:13]} 24. Bf3 {[%clk 0:01:41]}  Be4 {[%clk 0:00:12]} 25. Be2 {[%clk 0:01:41]}  Bh7 {[%clk 0:00:12]} 26. f3 {[%clk 0:01:40]}  Ne8 {[%clk 0:00:04]} 27. Nd3 {[%clk 0:01:34]}  b3 {[%clk 0:00:02]} 28. Qxa5 {[%clk 0:01:33]}  Rxa5 {[%clk 0:00:03]} 29. Ra3 {[%clk 0:01:30]}  Rca8 {[%clk 0:00:02]} 30. Rea1 {[%clk 0:01:29]}  f6 {[%clk 0:00:02]} 31. Nc1 {[%clk 0:01:21]}  e5 {[%clk 0:00:02]} 32. Bg3 {[%clk 0:01:19]}  exd4 {[%clk 0:00:00]} 33. exd4 {[%clk 0:01:19]} 1-0


[Site "https://www.chess.com"]